[Event "Titled Tuesday Blitz April 26 Early 2022"]
[White "Vakhlamov, Igor L."]
[Black "Riehle, Marco"]
[WhiteFideId "24126748"]
[BlackFideId "12904392"]
[WhiteElo "2401"]
[BlackElo "2462"]
[Result "0-1"]
[Round "07"]
[TimeControl "180+1"]
[Date "2022.04.26"]
[WhiteClock "0:00:10"]
[BlackClock "0:00:16"]

1. e4 {[%clk 0:03:00]}  e5 {[%clk 0:03:00]} 2. Nf3 {[%clk 0:03:00]}  Nf6 {[%clk 0:03:00]} 3. Nc3 {[%clk 0:03:00]}  Nc6 {[%clk 0:02:59]} 4. Bb5 {[%clk 0:03:00]}  Bc5 {[%clk 0:03:00]} 5. O-O {[%clk 0:02:59]}  O-O {[%clk 0:02:59]} 6. Nxe5 {[%clk 0:02:59]}  Nxe5 {[%clk 0:02:57]} 7. d4 {[%clk 0:02:59]}  Bd6 {[%clk 0:02:57]} 8. f4 {[%clk 0:02:59]}  Neg4 {[%clk 0:02:58]} 9. e5 {[%clk 0:02:59]}  Bb4 {[%clk 0:02:58]} 10. h3 {[%clk 0:02:53]}  Re8 {[%clk 0:02:40]} 11. hxg4 {[%clk 0:02:45]}  Bxc3 {[%clk 0:02:41]} 12. bxc3 {[%clk 0:02:45]}  Nd5 {[%clk 0:02:40]} 13. Qf3 {[%clk 0:02:28]}  c6 {[%clk 0:02:39]} 14. Bc4 {[%clk 0:02:19]}  d6 {[%clk 0:02:36]} 15. Ba3 {[%clk 0:01:58]}  dxe5 {[%clk 0:02:33]} 16. dxe5 {[%clk 0:01:59]}  Qb6+ {[%clk 0:02:24]} 17. Kh2 {[%clk 0:01:56]}  Ne3 {[%clk 0:02:20]} 18. Rfb1 {[%clk 0:01:28]}  Nxg4+ {[%clk 0:02:17]} 19. Kg3 {[%clk 0:01:27]}  Qc7 {[%clk 0:01:51]} 20. Bd6 {[%clk 0:01:24]}  Qa5 {[%clk 0:01:51]} 21. Rh1 {[%clk 0:01:15]}  Bf5 {[%clk 0:01:34]} 22. Rh5 {[%clk 0:01:12]}  g6 {[%clk 0:01:34]} 23. Rxf5 {[%clk 0:01:05]}  gxf5 {[%clk 0:01:33]} 24. Qd3 {[%clk 0:01:05]}  Re6 {[%clk 0:01:16]} 25. Bxe6 {[%clk 0:00:33]}  fxe6 {[%clk 0:01:17]} 26. Rb1 {[%clk 0:00:24]}  b5 {[%clk 0:00:57]} 27. a3 {[%clk 0:00:18]}  Qb6 {[%clk 0:00:43]} 28. Qd4 {[%clk 0:00:18]}  Qb7 {[%clk 0:00:39]} 29. Rh1 {[%clk 0:00:18]}  Qg7 {[%clk 0:00:30]} 30. Kf3 {[%clk 0:00:18]}  Qb7 {[%clk 0:00:25]} 31. Qc5 {[%clk 0:00:15]}  Rd8 {[%clk 0:00:23]} 32. Rh5 {[%clk 0:00:14]}  Rd7 {[%clk 0:00:21]} 33. Ke2 {[%clk 0:00:09]}  Rg7 {[%clk 0:00:19]} 34. c4 {[%clk 0:00:07]}  bxc4 {[%clk 0:00:18]} 35. Qxc4 {[%clk 0:00:08]}  Qb5 {[%clk 0:00:15]} 36. Qxb5 {[%clk 0:00:08]}  cxb5 {[%clk 0:00:16]} 37. Rh1 {[%clk 0:00:08]}  a6 {[%clk 0:00:16]} 38. a4 {[%clk 0:00:07]}  bxa4 {[%clk 0:00:16]} 39. Ra1 {[%clk 0:00:08]}  Nh6 {[%clk 0:00:16]} 40. Kf3 {[%clk 0:00:07]}  Nf7 {[%clk 0:00:16]} 41. Rxa4 {[%clk 0:00:08]}  h5 {[%clk 0:00:13]} 42. Rxa6 {[%clk 0:00:08]}  h4 {[%clk 0:00:13]} 43. Ra8+ {[%clk 0:00:06]}  Kh7 {[%clk 0:00:13]} 44. Kf2 {[%clk 0:00:07]}  Nh6 {[%clk 0:00:13]} 45. Re8 {[%clk 0:00:06]}  Ng4+ {[%clk 0:00:13]} 46. Kf3 {[%clk 0:00:06]}  Nh2+ {[%clk 0:00:13]} 47. Kf2 {[%clk 0:00:06]}  Rg3 {[%clk 0:00:13]} 48. Re7+ {[%clk 0:00:05]}  Kg8 {[%clk 0:00:14]} 49. Rxe6 {[%clk 0:00:06]}  Ng4+ {[%clk 0:00:14]} 50. Ke1 {[%clk 0:00:06]}  Rxg2 {[%clk 0:00:14]} 51. Rg6+ {[%clk 0:00:05]}  Kf7 {[%clk 0:00:14]} 52. Rg5 {[%clk 0:00:06]}  h3 {[%clk 0:00:14]} 53. Rxf5+ {[%clk 0:00:06]}  Ke6 {[%clk 0:00:14]} 54. Rh5 {[%clk 0:00:06]}  h2 {[%clk 0:00:14]} 55. f5+ {[%clk 0:00:07]}  Kd7 {[%clk 0:00:14]} 56. Rh7+ {[%clk 0:00:07]}  Kc6 {[%clk 0:00:14]} 57. f6 {[%clk 0:00:07]}  Nxf6 {[%clk 0:00:12]} 58. exf6 {[%clk 0:00:07]}  Kxd6 {[%clk 0:00:12]} 59. f7 {[%clk 0:00:06]}  Ke7 {[%clk 0:00:12]} 60. Kf1 {[%clk 0:00:05]}  Rg1+ {[%clk 0:00:12]} 61. Kf2 {[%clk 0:00:06]}  h1=Q {[%clk 0:00:13]} 62. f8=Q+ {[%clk 0:00:07]}  Kxf8 {[%clk 0:00:12]} 63. Rxh1 {[%clk 0:00:07]}  Rxh1 {[%clk 0:00:13]} 64. Kg2 {[%clk 0:00:08]}  Rh6 {[%clk 0:00:13]} 65. Kf3 {[%clk 0:00:08]}  Ke7 {[%clk 0:00:14]} 66. Ke3 {[%clk 0:00:08]}  Rd6 {[%clk 0:00:14]} 67. Ke4 {[%clk 0:00:09]}  Kd7 {[%clk 0:00:15]} 68. c4 {[%clk 0:00:09]}  Kc6 {[%clk 0:00:16]} 69. c5 {[%clk 0:00:10]}  Kxc5 {[%clk 0:00:16]} 0-1


[Site "https://www.chess.com"]

[Event "Titled Tuesday Blitz April 26 Early 2022"]
[White "Vasquez Schroeder, Rodrigo"]
[Black "Koellner, Ruben Gideon"]
[WhiteFideId "3400042"]
[BlackFideId "12993093"]
[WhiteElo "2561"]
[BlackElo "2600"]
[Result "1-0"]
[Round "07"]
[TimeControl "180+1"]
[Date "2022.04.26"]
[WhiteClock "0:00:21"]
[BlackClock "0:00:10"]

1. e4 {[%clk 0:03:00]}  d6 {[%clk 0:03:00]} 2. d4 {[%clk 0:03:00]}  Nf6 {[%clk 0:03:00]} 3. Nc3 {[%clk 0:03:00]}  e5 {[%clk 0:03:00]} 4. Nf3 {[%clk 0:03:00]}  Nbd7 {[%clk 0:03:00]} 5. Bc4 {[%clk 0:03:00]}  Be7 {[%clk 0:03:00]} 6. O-O {[%clk 0:03:00]}  c6 {[%clk 0:02:58]} 7. a4 {[%clk 0:02:58]}  h6 {[%clk 0:02:56]} 8. Qe2 {[%clk 0:02:58]}  Qc7 {[%clk 0:02:56]} 9. Rd1 {[%clk 0:02:58]}  Nf8 {[%clk 0:02:56]} 10. Bb3 {[%clk 0:02:58]}  Ng6 {[%clk 0:02:56]} 11. Qc4 {[%clk 0:02:58]}  O-O {[%clk 0:02:56]} 12. h3 {[%clk 0:02:58]}  Bd8 {[%clk 0:02:49]} 13. Qe2 {[%clk 0:02:52]}  Be7 {[%clk 0:02:47]} 14. a5 {[%clk 0:02:52]}  Nh5 {[%clk 0:02:44]} 15. Be3 {[%clk 0:02:46]}  Nhf4 {[%clk 0:02:44]} 16. Qc4 {[%clk 0:02:39]}  Bd8 {[%clk 0:02:43]} 17. dxe5 {[%clk 0:02:34]}  dxe5 {[%clk 0:02:43]} 18. Bc5 {[%clk 0:02:34]}  Be6 {[%clk 0:02:36]} 19. Qb4 {[%clk 0:02:34]}  Be7 {[%clk 0:02:25]} 20. Bxe7 {[%clk 0:02:31]}  Nxe7 {[%clk 0:02:26]} 21. Bxe6 {[%clk 0:02:27]}  Nxe6 {[%clk 0:02:27]} 22. Qc4 {[%clk 0:02:21]}  Rfd8 {[%clk 0:02:22]} 23. b4 {[%clk 0:02:19]}  a6 {[%clk 0:02:21]} 24. g3 {[%clk 0:02:17]}  Ng6 {[%clk 0:02:14]} 25. Kh2 {[%clk 0:02:12]}  Rxd1 {[%clk 0:02:13]} 26. Rxd1 {[%clk 0:02:11]}  Rd8 {[%clk 0:02:14]} 27. Rd3 {[%clk 0:02:04]}  Rxd3 {[%clk 0:02:12]} 28. Qxd3 {[%clk 0:02:05]}  Qe7 {[%clk 0:02:05]} 29. Qc4 {[%clk 0:02:02]}  Qd6 {[%clk 0:02:02]} 30. Kg2 {[%clk 0:01:57]}  Kf8 {[%clk 0:01:57]} 31. Ne2 {[%clk 0:01:54]}  Ke7 {[%clk 0:01:49]} 32. h4 {[%clk 0:01:48]}  Ngf8 {[%clk 0:01:36]} 33. h5 {[%clk 0:01:46]}  Nd7 {[%clk 0:01:36]} 34. Nh4 {[%clk 0:01:46]}  Qd2 {[%clk 0:01:26]} 35. Nf5+ {[%clk 0:01:45]}  Kf8 {[%clk 0:01:24]} 36. Ng1 {[%clk 0:01:28]}  Ng5 {[%clk 0:01:10]} 37. Ne3 {[%clk 0:01:16]}  Qd4 {[%clk 0:01:04]} 38. Nf3 {[%clk 0:01:07]}  Qxe4 {[%clk 0:00:51]} 39. Qxe4 {[%clk 0:01:06]}  Nxe4 {[%clk 0:00:52]} 40. Nf5 {[%clk 0:01:03]}  f6 {[%clk 0:00:45]} 41. Ne1 {[%clk 0:00:54]}  Nc3 {[%clk 0:00:28]} 42. Nd6 {[%clk 0:00:50]}  Nd5 {[%clk 0:00:27]} 43. Nd3 {[%clk 0:00:48]}  b6 {[%clk 0:00:16]} 44. c4 {[%clk 0:00:44]}  Ne7 {[%clk 0:00:15]} 45. b5 {[%clk 0:00:41]}  cxb5 {[%clk 0:00:14]} 46. cxb5 {[%clk 0:00:41]}  axb5 {[%clk 0:00:14]} 47. a6 {[%clk 0:00:41]}  Nc6 {[%clk 0:00:15]} 48. Nxb5 {[%clk 0:00:37]}  e4 {[%clk 0:00:12]} 49. Nb4 {[%clk 0:00:33]}  Nde5 {[%clk 0:00:08]} 50. Nxc6 {[%clk 0:00:32]}  Nxc6 {[%clk 0:00:09]} 51. a7 {[%clk 0:00:32]}  Nxa7 {[%clk 0:00:10]} 52. Nxa7 {[%clk 0:00:33]}  Ke7 {[%clk 0:00:10]} 53. Kf1 {[%clk 0:00:31]}  Kd6 {[%clk 0:00:10]} 54. Ke2 {[%clk 0:00:32]}  Ke5 {[%clk 0:00:08]} 55. Ke3 {[%clk 0:00:31]}  f5 {[%clk 0:00:09]} 56. Nc6+ {[%clk 0:00:29]}  Kd5 {[%clk 0:00:09]} 57. Nd4 {[%clk 0:00:27]}  Ke5 {[%clk 0:00:09]} 58. Nb5 {[%clk 0:00:27]}  Kd5 {[%clk 0:00:07]} 59. Kf4 {[%clk 0:00:27]}  Kc4 {[%clk 0:00:06]} 60. Nd6+ {[%clk 0:00:26]}  Kd5 {[%clk 0:00:05]} 61. Nxf5 {[%clk 0:00:26]}  b5 {[%clk 0:00:05]} 62. Ke3 {[%clk 0:00:24]}  b4 {[%clk 0:00:04]} 63. Nd4 {[%clk 0:00:25]}  Ke5 {[%clk 0:00:04]} 64. Nc6+ {[%clk 0:00:23]}  Kf5 {[%clk 0:00:03]} 65. Nxb4 {[%clk 0:00:23]}  Kg4 {[%clk 0:00:04]} 66. Kxe4 {[%clk 0:00:23]}  Kxh5 {[%clk 0:00:04]} 67. Kf5 {[%clk 0:00:23]}  g6+ {[%clk 0:00:03]} 68. Kf6 {[%clk 0:00:22]}  g5 {[%clk 0:00:04]} 69. Kf5 {[%clk 0:00:19]}  g4 {[%clk 0:00:05]} 70. Kf4 {[%clk 0:00:20]}  Kg6 {[%clk 0:00:05]} 71. Kxg4 {[%clk 0:00:20]}  Kf6 {[%clk 0:00:06]} 72. Kh4 {[%clk 0:00:21]}  Ke5 {[%clk 0:00:07]} 73. f4+ {[%clk 0:00:21]}  Ke4 {[%clk 0:00:07]} 74. Kh5 {[%clk 0:00:20]}  Kf5 {[%clk 0:00:08]} 75. Kxh6 {[%clk 0:00:21]}  Kg4 {[%clk 0:00:09]} 76. Nd5 {[%clk 0:00:20]}  Kxg3 {[%clk 0:00:10]} 77. f5 {[%clk 0:00:21]} 1-0


[Site "https://www.chess.com"]

[Event "Titled Tuesday Blitz April 26 Early 2022"]
[White "Wagner, Dennis"]
[Black "Skliarov, Viktor"]
[WhiteFideId "24650684"]
[BlackFideId "14106736"]
[WhiteElo "2355"]
[BlackElo "2229"]
[Result "1-0"]
[Round "07"]
[TimeControl "180+1"]
[Date "2022.04.26"]
[WhiteClock "0:00:04"]
[BlackClock "0:00:05"]

1. d4 {[%clk 0:03:00]}  Nf6 {[%clk 0:02:59]} 2. c4 {[%clk 0:03:00]}  e6 {[%clk 0:02:59]} 3. Nc3 {[%clk 0:03:01]}  Bb4 {[%clk 0:03:00]} 4. g3 {[%clk 0:02:58]}  c5 {[%clk 0:02:52]} 5. Nf3 {[%clk 0:02:54]}  cxd4 {[%clk 0:02:44]} 6. Nxd4 {[%clk 0:02:55]}  Nc6 {[%clk 0:02:45]} 7. Bg2 {[%clk 0:02:55]}  Qb6 {[%clk 0:02:45]} 8. Nb5 {[%clk 0:02:45]}  Ng4 {[%clk 0:02:21]} 9. O-O {[%clk 0:02:42]}  a6 {[%clk 0:02:06]} 10. Nd6+ {[%clk 0:02:41]}  Ke7 {[%clk 0:02:06]} 11. Nce4 {[%clk 0:02:16]}  f5 {[%clk 0:01:49]} 12. Bg5+ {[%clk 0:02:09]}  Nf6 {[%clk 0:01:48]} 13. c5 {[%clk 0:01:01]}  Bxc5 {[%clk 0:01:14]} 14. Nc4 {[%clk 0:01:01]}  Qa7 {[%clk 0:01:14]} 15. Nxc5 {[%clk 0:00:56]}  Qxc5 {[%clk 0:01:14]} 16. Rc1 {[%clk 0:00:57]}  d5 {[%clk 0:01:03]} 17. Be3 {[%clk 0:00:56]}  Qb5 {[%clk 0:00:42]} 18. a4 {[%clk 0:00:43]}  Qb4 {[%clk 0:00:41]} 19. Bd2 {[%clk 0:00:25]}  Qc5 {[%clk 0:00:38]} 20. b4 {[%clk 0:00:23]}  Qd4 {[%clk 0:00:34]} 21. e3 {[%clk 0:00:17]}  Qg4 {[%clk 0:00:33]} 22. f3 {[%clk 0:00:16]}  Qg6 {[%clk 0:00:32]} 23. Nb6 {[%clk 0:00:16]}  Rb8 {[%clk 0:00:32]} 24. b5 {[%clk 0:00:16]}  axb5 {[%clk 0:00:28]} 25. axb5 {[%clk 0:00:17]}  Ne5 {[%clk 0:00:27]} 26. Bb4+ {[%clk 0:00:17]}  Kf7 {[%clk 0:00:27]} 27. Rc7+ {[%clk 0:00:18]}  Ned7 {[%clk 0:00:23]} 28. Qd4 {[%clk 0:00:16]}  Re8 {[%clk 0:00:22]} 29. Rfc1 {[%clk 0:00:17]}  Kg8 {[%clk 0:00:21]} 30. Nxc8 {[%clk 0:00:17]}  e5 {[%clk 0:00:20]} 31. Qd2 {[%clk 0:00:17]}  f4 {[%clk 0:00:20]} 32. exf4 {[%clk 0:00:17]}  exf4 {[%clk 0:00:20]} 33. Qxf4 {[%clk 0:00:17]}  Kh8 {[%clk 0:00:19]} 34. Ne7 {[%clk 0:00:18]}  Qd3 {[%clk 0:00:18]} 35. Bf1 {[%clk 0:00:12]}  Qb3 {[%clk 0:00:19]} 36. Nf5 {[%clk 0:00:11]}  Rg8 {[%clk 0:00:13]} 37. Nd6 {[%clk 0:00:11]}  Rbf8 {[%clk 0:00:12]} 38. Nxb7 {[%clk 0:00:06]}  Ne4 {[%clk 0:00:10]} 39. Bxf8 {[%clk 0:00:04]}  Rxf8 {[%clk 0:00:10]} 40. Rxd7 {[%clk 0:00:04]}  Rg8 {[%clk 0:00:05]} 41. fxe4 {[%clk 0:00:03]}  h6 {[%clk 0:00:05]} 42. exd5 {[%clk 0:00:04]}  Qb2 {[%clk 0:00:05]} 43. Nd6 {[%clk 0:00:04]} 1-0


[Site "https://www.chess.com"]

[Event "Titled Tuesday Blitz April 26 Early 2022"]
[White "Yeremyan, Alen"]
[Black "Khusenkhojaev, Muhammad"]
[WhiteFideId "13308998"]
[BlackFideId "14700247"]
[WhiteElo "2158"]
[BlackElo "2180"]
[Result "1-0"]
[Round "07"]
[TimeControl "180+1"]
[Date "2022.04.26"]
[WhiteClock "0:01:48"]
[BlackClock "0:00:19"]

1. e4 {[%clk 0:02:56]}  c5 {[%clk 0:02:59]} 2. Nc3 {[%clk 0:02:54]}  d6 {[%clk 0:02:58]} 3. f4 {[%clk 0:02:53]}  Nc6 {[%clk 0:02:56]} 4. Nf3 {[%clk 0:02:54]}  g6 {[%clk 0:02:56]} 5. Bc4 {[%clk 0:02:54]}  Bg7 {[%clk 0:02:55]} 6. O-O {[%clk 0:02:55]}  e6 {[%clk 0:02:55]} 7. d3 {[%clk 0:02:54]}  Nge7 {[%clk 0:02:55]} 8. f5 {[%clk 0:02:54]}  exf5 {[%clk 0:02:41]} 9. Qe1 {[%clk 0:02:54]}  O-O {[%clk 0:02:38]} 10. Qh4 {[%clk 0:02:51]}  Be6 {[%clk 0:02:16]} 11. Bxe6 {[%clk 0:02:49]}  fxe6 {[%clk 0:02:15]} 12. Ng5 {[%clk 0:02:50]}  h5 {[%clk 0:01:53]} 13. Nxe6 {[%clk 0:02:49]}  Qd7 {[%clk 0:01:53]} 14. Nxf8 {[%clk 0:02:50]}  Rxf8 {[%clk 0:01:53]} 15. Bg5 {[%clk 0:02:49]}  Rf7 {[%clk 0:01:43]} 16. Rae1 {[%clk 0:02:48]}  Nd4 {[%clk 0:01:41]} 17. Bxe7 {[%clk 0:02:43]}  Rxe7 {[%clk 0:01:41]} 18. Nd5 {[%clk 0:02:43]}  Rf7 {[%clk 0:01:31]} 19. c3 {[%clk 0:02:43]}  Nc6 {[%clk 0:01:24]} 20. exf5 {[%clk 0:02:42]}  Rxf5 {[%clk 0:01:23]} 21. Ne7+ {[%clk 0:02:24]}  Nxe7 {[%clk 0:01:19]} 22. Rxe7 {[%clk 0:02:24]}  Rxf1+ {[%clk 0:01:16]} 23. Kxf1 {[%clk 0:02:24]}  Qf5+ {[%clk 0:01:15]} 24. Ke2 {[%clk 0:02:19]}  Bf6 {[%clk 0:01:14]} 25. Re8+ {[%clk 0:02:17]}  Kf7 {[%clk 0:01:12]} 26. Qe4 {[%clk 0:02:17]}  Qxe4+ {[%clk 0:01:07]} 27. Rxe4 {[%clk 0:02:16]}  b5 {[%clk 0:00:59]} 28. h3 {[%clk 0:02:10]}  a5 {[%clk 0:00:50]} 29. a4 {[%clk 0:02:06]}  d5 {[%clk 0:00:37]} 30. Rf4 {[%clk 0:02:05]}  b4 {[%clk 0:00:36]} 31. cxb4 {[%clk 0:02:04]}  cxb4 {[%clk 0:00:37]} 32. b3 {[%clk 0:02:04]}  Ke6 {[%clk 0:00:35]} 33. Rf1 {[%clk 0:01:54]}  g5 {[%clk 0:00:32]} 34. Rc1 {[%clk 0:01:52]}  Bc3 {[%clk 0:00:31]} 35. Rf1 {[%clk 0:01:53]}  Be5 {[%clk 0:00:29]} 36. g4 {[%clk 0:01:53]}  hxg4 {[%clk 0:00:27]} 37. hxg4 {[%clk 0:01:53]}  Bf4 {[%clk 0:00:27]} 38. Rh1 {[%clk 0:01:52]}  Ke5 {[%clk 0:00:27]} 39. Rh6 {[%clk 0:01:52]}  Kd4 {[%clk 0:00:28]} 40. Rc6 {[%clk 0:01:52]}  Be5 {[%clk 0:00:19]} 41. Kd2 {[%clk 0:01:48]}  Bf4+ {[%clk 0:00:19]} 42. Kc2 {[%clk 0:01:48]}  Ke3 {[%clk 0:00:19]} 43. Rc5 {[%clk 0:01:49]}  Kf3 {[%clk 0:00:17]} 44. Rxa5 {[%clk 0:01:48]}  Kxg4 {[%clk 0:00:18]} 45. Rxd5 {[%clk 0:01:49]}  Kf3 {[%clk 0:00:18]} 46. a5 {[%clk 0:01:47]}  g4 {[%clk 0:00:19]} 47. a6 {[%clk 0:01:48]}  g3 {[%clk 0:00:19]} 48. a7 {[%clk 0:01:47]}  g2 {[%clk 0:00:19]} 49. a8=Q {[%clk 0:01:48]}  g1=Q {[%clk 0:00:19]} 50. Rg5+ {[%clk 0:01:48]} 1-0


[Site "https://www.chess.com"]

[Event "Titled Tuesday Blitz April 26 Early 2022"]
[White "Zhigalko, Sergei"]
[Black "Rozman, Levy"]
[WhiteFideId "13502956"]
[BlackFideId "2039877"]
[WhiteElo "2662"]
[BlackElo "2376"]
[Result "1-0"]
[Round "07"]
[TimeControl "180+1"]
[Date "2022.04.26"]
[WhiteClock "0:01:10"]
[BlackClock "0:00:47"]

1. e4 {[%clk 0:03:00]}  d5 {[%clk 0:02:58]} 2. exd5 {[%clk 0:03:01]}  Nf6 {[%clk 0:02:58]} 3. d4 {[%clk 0:03:00]}  Bg4 {[%clk 0:02:58]} 4. Bb5+ {[%clk 0:03:00]}  c6 {[%clk 0:02:58]} 5. dxc6 {[%clk 0:02:57]}  Nxc6 {[%clk 0:02:58]} 6. Nf3 {[%clk 0:02:53]}  Qa5+ {[%clk 0:02:53]} 7. Nc3 {[%clk 0:02:53]}  O-O-O {[%clk 0:02:53]} 8. Bxc6 {[%clk 0:02:52]}  bxc6 {[%clk 0:02:54]} 9. Qe2 {[%clk 0:02:52]}  Rxd4 {[%clk 0:02:44]} 10. h3 {[%clk 0:02:45]}  Bxf3 {[%clk 0:01:53]} 11. Qxf3 {[%clk 0:02:41]}  Qa6 {[%clk 0:01:47]} 12. Be3 {[%clk 0:02:37]}  Rd7 {[%clk 0:01:43]} 13. Qe2 {[%clk 0:02:18]}  Qxe2+ {[%clk 0:01:39]} 14. Kxe2 {[%clk 0:02:19]}  e5 {[%clk 0:01:32]} 15. Rhd1 {[%clk 0:02:14]}  Nd5 {[%clk 0:01:32]} 16. Na4 {[%clk 0:02:08]}  f5 {[%clk 0:01:15]} 17. Bc5 {[%clk 0:02:01]}  Bd6 {[%clk 0:01:00]} 18. c4 {[%clk 0:01:25]}  Nf4+ {[%clk 0:00:59]} 19. Kf1 {[%clk 0:01:26]}  Rhd8 {[%clk 0:00:53]} 20. Be3 {[%clk 0:01:11]}  Nd3 {[%clk 0:00:47]} 21. Rxd3 {[%clk 0:01:10]} 1-0


[Site "https://www.chess.com"]

[Event "Titled Tuesday Blitz April 26 Early 2022"]
[White "Ajay Krishna, S"]
[Black "Jeet, Jain"]
[WhiteFideId "5096430"]
[BlackFideId "5073022"]
[WhiteElo "2247"]
[BlackElo "2085"]
[Result "1-0"]
[Round "08"]
[TimeControl "180+1"]
[Date "2022.04.26"]
[WhiteClock "0:00:33"]
[BlackClock "0:00:53"]

1. d4 {[%clk 0:02:58]}  Nf6 {[%clk 0:02:53]} 2. c4 {[%clk 0:02:58]}  c5 {[%clk 0:02:52]} 3. d5 {[%clk 0:02:58]}  b5 {[%clk 0:02:52]} 4. cxb5 {[%clk 0:02:58]}  a6 {[%clk 0:02:52]} 5. bxa6 {[%clk 0:02:59]}  d6 {[%clk 0:02:51]} 6. Nc3 {[%clk 0:02:58]}  g6 {[%clk 0:02:52]} 7. e4 {[%clk 0:02:58]}  Bg7 {[%clk 0:02:52]} 8. Nf3 {[%clk 0:02:57]}  O-O {[%clk 0:02:52]} 9. Be2 {[%clk 0:02:54]}  Bxa6 {[%clk 0:02:52]} 10. O-O {[%clk 0:02:53]}  Nbd7 {[%clk 0:02:52]} 11. a4 {[%clk 0:02:45]}  Qa5 {[%clk 0:02:51]} 12. Bd2 {[%clk 0:02:40]}  Rfb8 {[%clk 0:02:50]} 13. Nb5 {[%clk 0:02:23]}  Qb6 {[%clk 0:02:42]} 14. Qc2 {[%clk 0:02:04]}  Ne8 {[%clk 0:02:42]} 15. Bc3 {[%clk 0:01:51]}  Nc7 {[%clk 0:02:36]} 16. Bxg7 {[%clk 0:01:19]}  Kxg7 {[%clk 0:02:37]} 17. Nxc7 {[%clk 0:01:18]}  Qxc7 {[%clk 0:02:25]} 18. Bxa6 {[%clk 0:01:17]}  Rxa6 {[%clk 0:02:25]} 19. Nd4 {[%clk 0:01:12]}  Qa5 {[%clk 0:02:09]} 20. Nc6 {[%clk 0:01:06]}  Rxc6 {[%clk 0:02:00]} 21. dxc6 {[%clk 0:01:05]}  Ne5 {[%clk 0:02:00]} 22. Qc3 {[%clk 0:01:01]}  Qxc3 {[%clk 0:01:25]} 23. bxc3 {[%clk 0:01:00]}  Nxc6 {[%clk 0:01:25]} 24. Rfb1 {[%clk 0:00:58]}  Ra8 {[%clk 0:01:25]} 25. Rb6 {[%clk 0:00:57]}  Ne5 {[%clk 0:01:22]} 26. a5 {[%clk 0:00:52]}  Nc4 {[%clk 0:01:22]} 27. Rb5 {[%clk 0:00:52]}  Ra6 {[%clk 0:01:20]} 28. Ra4 {[%clk 0:00:47]}  Ne5 {[%clk 0:01:14]} 29. Rb6 {[%clk 0:00:45]}  Ra8 {[%clk 0:01:05]} 30. a6 {[%clk 0:00:45]}  c4 {[%clk 0:00:53]} 31. a7 {[%clk 0:00:33]} 1-0


[Site "https://www.chess.com"]

[Event "Titled Tuesday Blitz April 26 Early 2022"]
[White "Akrakan"]
[Black "Tasev, Dejan"]
[BlackFideId "936618"]
[WhiteElo "2096"]
[BlackElo "2253"]
[Result "0-1"]
[Round "08"]
[TimeControl "180+1"]
[Date "2022.04.26"]
[WhiteClock "0:01:39"]
[BlackClock "0:01:05"]

1. e4 {[%clk 0:03:00]}  c6 {[%clk 0:02:59]} 2. Nc3 {[%clk 0:03:00]}  d5 {[%clk 0:03:00]} 3. Qf3 {[%clk 0:03:00]}  dxe4 {[%clk 0:02:59]} 4. Nxe4 {[%clk 0:03:01]}  Nf6 {[%clk 0:03:00]} 5. Bc4 {[%clk 0:03:01]}  Nbd7 {[%clk 0:02:47]} 6. Nxf6+ {[%clk 0:03:00]}  Nxf6 {[%clk 0:02:46]} 7. Ne2 {[%clk 0:02:59]}  e6 {[%clk 0:02:39]} 8. d4 {[%clk 0:02:58]}  Be7 {[%clk 0:02:38]} 9. O-O {[%clk 0:02:58]}  O-O {[%clk 0:02:38]} 10. c3 {[%clk 0:02:58]}  h6 {[%clk 0:02:33]} 11. Bd3 {[%clk 0:02:58]}  Bd6 {[%clk 0:02:31]} 12. Ng3 {[%clk 0:02:57]}  Qc7 {[%clk 0:02:27]} 13. Ne4 {[%clk 0:02:42]}  Bxh2+ {[%clk 0:02:19]} 14. Kh1 {[%clk 0:02:42]}  Nxe4 {[%clk 0:02:20]} 15. Qxe4 {[%clk 0:02:41]}  f5 {[%clk 0:02:20]} 16. Qe2 {[%clk 0:02:32]}  Bd6 {[%clk 0:02:17]} 17. Bd2 {[%clk 0:02:22]}  Bd7 {[%clk 0:02:14]} 18. Rae1 {[%clk 0:02:22]}  Rae8 {[%clk 0:02:14]} 19. g3 {[%clk 0:02:21]}  c5 {[%clk 0:02:11]} 20. Kg2 {[%clk 0:02:18]}  Bc6+ {[%clk 0:02:09]} 21. f3 {[%clk 0:02:18]}  Bxg3 {[%clk 0:02:08]} 22. Rd1 {[%clk 0:02:16]}  cxd4 {[%clk 0:02:00]} 23. cxd4 {[%clk 0:02:15]}  Bd6 {[%clk 0:01:58]} 24. Rh1 {[%clk 0:02:13]}  Rf6 {[%clk 0:01:54]} 25. Rdg1 {[%clk 0:02:03]}  Qb6 {[%clk 0:01:38]} 26. Bc3 {[%clk 0:01:59]}  Bd5 {[%clk 0:01:34]} 27. Kf1 {[%clk 0:01:57]}  Qc6 {[%clk 0:01:32]} 28. Rh3 {[%clk 0:01:54]}  a6 {[%clk 0:01:29]} 29. Kf2 {[%clk 0:01:47]}  b5 {[%clk 0:01:27]} 30. a3 {[%clk 0:01:46]}  Rc8 {[%clk 0:01:16]} 31. Bd2 {[%clk 0:01:44]}  Qb6 {[%clk 0:01:15]} 32. Bxh6 {[%clk 0:01:40]}  Rxh6 {[%clk 0:01:06]} 33. Rxh6 {[%clk 0:01:39]}  Qxd4+ {[%clk 0:01:07]} 34. Kf1 {[%clk 0:01:39]}  Rc1+ {[%clk 0:01:05]} 0-1


[Site "https://www.chess.com"]